bitfinex-derivatives/quotes_SOLF0:USTF0_20241226
["timestamp","ask_amount","ask_price","bid_price","bid_amount"]
[1735229205864,3.4,188.52,188.47,2.6553]
[1735229206457,3.4,188.52,188.44,3.1372]
[1735229206663,3.4,188.52,188.39,1.537]
[1735229207368,2.6554,188.48,188.39,1.537]
[1735229207560,3.4,188.47,188.39,1.537]
[1735229207959,3.4,188.53,188.39,21.29234129]
[1735229208270,3.4,188.53,188.4,3.4]
[1735229208566,6.0547,188.53,188.4,3.4]
[1735229209259,3.4,188.53,188.4,3.4]
[1735229209867,3.4,188.53,188.47,2.6554]
[1735229210162,2.6549,188.51,188.4,3.4]
[1735229210668,2.6549,188.51,188.45,2.6556]
[1735229210966,2.6549,188.51,188.4,3.4]
[1735229211271,3.4,188.53,188.45,2.6556]
[1735229211478,3.4,188.53,188.39,21.29234129]
[1735229211779,2.6553,188.48,188.43,2.6558]
[1735229212079,6.0553,188.48,188.43,2.6558]
[1735229212577,2.6555,188.47,188.41,2.6562]
[1735229212974,3.4,188.48,188.39,1.537]
[1735229213178,2.6556,188.46,188.41,2.6562]
[1735229213380,3.4,188.48,188.39,1.537]
[1735229213981,2.6556,188.46,188.41,2.6562]
[1735229214182,3.4,188.48,188.39,1.537]
[1735229214384,3.4,188.47,188.44,2.6558]
[1735229214583,3.4,188.47,188.39,1.537]
[1735229215083,2.656,188.43,188.39,1.537]
[1735229215578,2.656,188.43,188.39,4.1935]
[1735229215779,3.4,188.42,188.39,2.6565]
[1735229216180,2.6563,188.41,188.36,2.6569]
[1735229216584,2.6565,188.39,188.32,4.6828]
[1735229216778,3.4,188.42,188.32,4.6828]
[1735229217285,3.4,188.42,188.37,2.6568]
[1735229217488,3.4,188.41,188.32,4.6828]
[1735229217988,3.4,188.41,188.39,2.6565]
[1735229218679,3.4,188.41,188.32,4.6828]
[1735229218883,3.4,188.41,188.4,2.6564]
[1735229219877,2.6554,188.48,188.32,4.6828]
[1735229220080,3.4,188.47,188.35,19.75534129]
[1735229220288,0.2163,188.52,188.35,19.75534129]
[1735229220489,3.1193,188.53,188.36,0.97601219]
[1735229220688,3.4,188.52,188.39,19.75534129]
[1735229220889,3.4,188.52,188.4,4.7865]
[1735229221189,6.0548,188.52,188.4,4.7865]
[1735229221890,3.4,188.51,188.4,4.7865]
[1735229222092,3.4,188.51,188.41,3.4]
[1735229222289,3.4,188.51,188.43,19.75534129]
[1735229222492,3.4,188.51,188.5,2.655]
[1735229223393,3.4,188.54,188.51,2.6547]
[1735229224089,3.4,188.54,188.43,19.75534129]
[1735229224290,3.4,188.55,188.43,19.75534129]
[1735229224487,3.4,188.56,188.43,19.75534129]
[1735229224695,3.4,188.56,188.46,2.6554]
[1735229224891,2.6544,188.54,188.43,19.75534129]
[1735229225094,3.4,188.56,188.4,4.7865]
[1735229225588,2.6546,188.53,188.4,4.7865]
[1735229226094,3.4,188.56,188.47,2.6553]
[1735229226095,2.6547,188.52,188.47,2.6553]
[1735229226291,3.4,188.51,188.4,4.7865]
[1735229226497,3.4,188.5,188.4,4.7865]
[1735229226691,19.75534129,188.54,188.4,4.7865]
[1735229226692,2.6556,188.46,188.42,2.6561]
[1735229226991,3.4,188.45,188.4,4.7865]
[1735229227194,3.4,188.46,188.4,4.7865]
[1735229227394,3.4,188.5,188.4,4.7865]
[1735229227694,3.4,188.52,188.4,4.7865]
[1735229227891,3.4,188.51,188.4,4.7865]
[1735229229098,3.4,188.51,188.48,2.6552]
[1735229229390,3.4,188.51,188.4,4.7865]
[1735229229591,3.4,188.51,188.5,2.655]
[1735229229796,3.4,188.51,188.4,4.7865]
[1735229230799,2.655,188.5,188.45,2.6556]
[1735229231199,2.655,188.5,188.4,4.7865]
[1735229231498,3.4,188.51,188.4,4.7865]
[1735229231699,23.15534129,188.51,188.35,127.49470967]
[1735229231898,3.3109,188.5,188.35,107.73936838]
[1735229232091,2.6556,188.46,188.41,2.6562]
[1735229232292,0.2171,188.54,188.36,4.7318]
[1735229232501,3.4,188.53,188.36,4.7318]
[1735229232694,2.6548,188.52,188.47,2.6553]
[1735229233101,3.4,188.51,188.39,19.75534129]
[1735229233297,3.4,188.51,188.49,2.655]
[1735229233498,3.4,188.51,188.39,19.75534129]
[1735229235602,3.4,188.51,188.47,2.6553]
[1735229235801,3.4,188.51,188.39,19.75534129]
[1735229236198,3.4,188.51,188.47,2.6553]
[1735229236399,3.4,188.51,188.39,19.75534129]
[1735229237198,3.4,188.51,188.36,4.7318]
[1735229237503,19.75534129,188.49,188.36,4.7318]
[1735229237697,3.2318,188.48,188.38,2.6566]
[1735229237897,2.6562,188.42,188.36,4.7318]
[1735229238093,3.44,188.41,188.36,4.7318]
[1735229238298,3.44,188.41,188.37,2.6568]
[1735229240402,3.44,188.4,188.37,2.6568]
[1735229242007,7.29100303,188.46,188.36,4.7318]
[1735229242402,7.29100303,188.46,188.38,19.75534129]
[1735229242605,7.29100303,188.46,188.45,2.6557]
[1735229242800,7.29100303,188.46,188.22,14.5741646]
[1735229243007,3.44,188.47,188.35,3.1468]
[1735229243207,3.44,188.47,188.36,1.6755]
[1735229243602,19.75534129,188.46,188.25,5.317]
[1735229243803,2.6565,188.4,188.27,19.75534129]
[1735229244009,3.44,188.39,188.27,19.75534129]
[1735229244208,6.0968,188.38,188.33,2.6574]
[1735229244507,3.44,188.37,188.33,2.6574]
[1735229244710,3.44,188.37,188.27,19.75534129]
[1735229244907,6.097,188.37,188.31,2.6575]
[1735229245107,6.097,188.37,188.27,19.75534129]
[1735229245710,3.44,188.37,188.33,2.6573]
[1735229245905,3.44,188.37,188.27,19.75534129]
[1735229246306,3.44,188.37,188.32,2.6575]
[1735229247013,6.0969,188.37,188.32,2.6575]
[1735229247208,29.16401212,188.45,188.33,2.6572]
[1735229247415,3.44,188.44,188.27,19.75534129]
[1735229247716,3.44,188.43,188.28,0.97635861]
[1735229247910,3.44,188.43,188.37,2.6567]
[1735229248110,3.44,188.43,188.27,19.75534129]
[1735229248111,6.096,188.43,188.27,19.75534129]
[1735229248421,2.656,188.43,188.28,0.97635499]
[1735229248713,3.44,188.42,188.28,0.97635499]
[1735229248915,3.44,188.42,188.27,19.75534129]
[1735229249112,3.44,188.42,188.37,2.6567]
[1735229249316,3.44,188.42,188.28,0.97635532]
[1735229249317,7.29100303,188.49,188.31,19.75534129]
[1735229249614,7.29100303,188.49,188.47,2.6554]
[1735229249812,7.29100303,188.49,188.4,19.75534129]
[1735229250014,7.29100303,188.49,188.41,3.2364]
[1735229251017,21.87300909,188.5,188.49,2.6551]
[1735229251214,21.87300909,188.5,188.41,3.2364]
[1735229251215,3.44,188.54,188.41,3.2364]
[1735229251414,3.44,188.54,188.44,19.75534129]
[1735229251617,3.44,188.54,188.44,23.19534129]
[1735229252309,3.44,188.54,188.49,2.6551]
[1735229252507,3.44,188.54,188.44,23.19534129]
[1735229252714,3.44,188.54,188.41,6.6764]
[1735229253017,2.6548,188.52,188.41,3.2364]
[1735229253212,3.44,188.54,188.41,3.2364]
[1735229253413,2.6551,188.49,188.43,2.656]
[1735229253615,6.0951,188.49,188.41,3.2364]
[1735229253814,3.44,188.49,188.41,3.2364]
[1735229254419,6.0953,188.49,188.43,2.656]
[1735229254619,3.44,188.49,188.41,3.2364]
[1735229255324,3.44,188.49,188.44,2.6557]
[1735229255525,3.44,188.49,188.41,3.2364]
[1735229256625,3.44,188.49,188.41,5.8926]
[1735229257220,3.44,188.49,188.41,3.2364]
[1735229258417,3.44,188.49,188.41,1.5623]
[1735229258614,7.29100303,188.54,188.42,3.44]
[1735229258822,7.29100303,188.55,188.44,19.75534129]
[1735229259016,7.29100303,188.55,188.48,19.75534129]
[1735229259217,7.29100303,188.55,188.49,5.0722]
[1735229259421,2.19960303,188.55,188.49,5.0722]
[1735229259620,11.34481212,188.56,188.52,19.75534129]
[1735229259822,58.32802424,188.57,188.52,19.75534129]
[1735229260028,58.32802424,188.57,188.49,5.0722]
[1735229260029,22.43084917,188.58,188.56,19.75534129]
[1735229260227,37.38293154,188.6,188.59,2.6537]
[1735229260423,7.28688283,188.64,188.56,23.19534129]
[1735229260629,7.28688283,188.64,188.6,19.75534129]
[1735229260825,58.32802424,188.66,188.65,2.6529]
[1735229261124,58.32802424,188.66,188.6,19.75534129]
[1735229261320,185.810465,188.7,188.58,3.44]
[1735229261524,3.44,188.7,188.58,3.44]
[1735229261921,3.44,188.74,188.58,3.44]
[1735229263927,4.9706,188.75,188.58,3.44]
[1735229264127,7.6221,188.75,188.58,3.44]
[1735229264529,4.9706,188.75,188.58,3.44]
[1735229264724,2.6517,188.74,188.58,3.44]
[1735229265126,4.9706,188.75,188.58,3.44]
[1735229265331,2.6518,188.73,188.58,3.44]
[1735229266222,2.6521,188.71,188.65,2.6527]
[1735229266625,2.6521,188.71,188.59,23.31534129]
[1735229267825,4.9706,188.75,188.59,19.75534129]
[1735229268031,4.9706,188.75,188.58,3.56]
[1735229268533,2.6525,188.68,188.62,2.6532]
[1735229268731,3.2093,188.67,188.55,20.39044129]
[1735229268927,3.2093,188.67,188.6,2.6536]
[1735229269127,3.2093,188.67,188.55,23.31534129]
[1735229269644,5.8619,188.67,188.61,2.6533]
[1735229269823,3.2093,188.67,188.55,23.31534129]
[1735229270030,4.8798,188.67,188.55,23.31534129]
[1735229270528,3.2093,188.67,188.55,23.31534129]
[1735229271034,3.2093,188.67,188.65,2.6527]
[1735229271227,3.2093,188.67,188.55,23.31534129]
[1735229271629,3.56,188.72,188.55,23.31534129]
[1735229272133,3.56,188.72,188.66,2.6526]
[1735229272431,2.6519,188.73,188.6,3.56]
[1735229272629,6.2119,188.73,188.6,3.56]
[1735229272834,6.2119,188.73,188.63,2.653]
[1735229273030,3.179,188.75,188.6,3.56]
[1735229273328,5.8305,188.75,188.6,3.56]
[1735229274034,5.8305,188.75,188.6,4.3231]
[1735229274435,5.8305,188.75,188.69,2.6522]
[1735229274632,3.179,188.75,188.65,3.56]
[1735229274831,5.2305,188.8,188.66,3.56]
[1735229275030,1.6705,188.8,188.74,2.6515]
[1735229275233,5.2305,188.8,188.74,2.6515]
[1735229275433,1.6705,188.8,188.66,3.56]
[1735229275633,1.6705,188.8,188.67,19.75534129]
[1735229275932,5.2305,188.8,188.67,19.75534129]
[1735229276130,5.2305,188.8,188.75,2.6514]
[1735229276532,5.2305,188.8,188.67,19.75534129]
[1735229277336,5.2305,188.8,188.74,2.6515]
[1735229277634,5.2305,188.8,188.67,19.75534129]
[1735229277838,3.2085,188.83,188.67,19.75534129]
[1735229278133,6.7685,188.83,188.67,19.75534129]
[1735229278335,6.7685,188.83,188.78,2.6509]
[1735229278738,3.2085,188.83,188.78,2.6509]
[1735229279140,3.2085,188.83,188.79,2.6509]
[1735229279538,3.2085,188.83,188.71,23.31534129]
[1735229279835,19.75534129,188.88,188.71,23.31534129]
[1735229280037,8.4021,188.93,188.75,19.75534129]
[1735229280236,8.4021,188.93,188.76,3.56]
[1735229280632,2.6494,188.9,188.84,2.6501]
[1735229280838,2.6494,188.9,188.76,3.56]
[1735229281136,2.6494,188.9,188.8,2.6507]
[1735229281436,2.6494,188.9,188.76,3.56]
[1735229282035,2.6498,188.87,188.76,3.56]
[1735229282239,3.56,188.91,188.76,3.56]
[1735229282741,2.6498,188.88,188.83,2.6503]
[1735229282939,3.56,188.91,188.76,3.56]
[1735229283136,4.8421,188.93,188.77,0.97390009]
[1735229283444,4.8421,188.93,188.79,19.75534129]
[1735229283839,3.2424,188.93,188.79,19.75534129]
[1735229285041,3.2424,188.93,188.76,3.56]
[1735229285442,5.8915,188.93,188.88,2.6496]
[1735229285641,3.2424,188.93,188.82,3.56]
[1735229286137,3.2424,188.93,188.89,2.6494]
[1735229286840,3.2424,188.93,188.82,3.56]
[1735229286841,1.6166,188.93,188.9,2.6493]
[1735229287040,1.6861,188.98,188.83,19.75534129]
[1735229287238,1.6861,188.98,188.84,0.97358838]
[1735229287438,1.6861,188.98,188.87,19.75534129]
[1735229287643,1.6861,188.98,188.88,3.56]
[1735229287838,1.6861,188.98,188.96,2.6485]
[1735229288043,3.56,189.04,188.88,3.56]
[1735229288237,3.56,189.04,188.91,19.75534129]
[1735229288437,3.56,189.04,188.94,2.6487]
[1735229288644,3.56,189.04,188.91,23.31534129]
[1735229288947,2.6478,189.01,188.95,2.6485]
[1735229289146,3.56,189.04,188.91,23.31534129]
[1735229290452,3.56,189.04,188.92,0.97324506]
[1735229290642,3.56,189.04,188.91,23.31534129]
[1735229291043,3.56,189.04,188.91,3.56]
[1735229291755,3.56,189.04,188.87,23.31534129]
[1735229292053,3.56,189.04,188.83,21.15144129]
[1735229292354,2.6488,188.95,188.84,4.53356752]
[1735229292648,2.6488,188.95,188.89,2.6494]
[1735229293047,2.6488,188.95,188.84,3.56]
[1735229293048,1.6231,188.95,188.84,3.56]
[1735229293448,1.6231,188.95,188.85,0.97365198]
[1735229293645,3.56,188.96,188.85,0.97365198]
[1735229293844,3.56,188.96,188.92,2.649]
[1735229294052,3.56,189.0,188.84,3.56]
[1735229294251,3.56,189.0,188.85,0.97351148]
[1735229294451,2.6482,188.99,188.89,2.6494]
[1735229294657,3.56,189.0,188.87,19.75534129]
[1735229294849,1.6231,189.04,188.87,19.75534129]
[1735229295050,3.56,189.03,188.87,19.75534129]
[1735229295347,3.56,189.03,188.84,3.56]
[1735229295348,3.56,189.03,188.91,19.75534129]
[1735229295549,3.56,189.03,188.92,3.56]
[1735229297950,2.6477,189.02,188.96,2.6484]
[1735229298858,3.56,189.03,188.94,2.6487]
[1735229299059,3.56,189.03,188.87,19.75534129]
[1735229299356,3.56,189.03,188.85,3.54]
[1735229299953,2.6483,188.98,188.92,2.6491]
[1735229300148,3.54,188.98,188.92,2.6491]
[1735229300350,3.54,188.98,188.83,19.75534129]
[1735229300553,1.6771,188.97,188.79,19.75534129]
[1735229300859,1.6771,188.97,188.8,0.97380645]
[1735229301257,1.6771,188.97,188.8,4.51380645]
[1735229301452,1.6771,188.97,188.8,3.54]
[1735229302464,56.6831,189.04,188.83,19.75534129]
[1735229302465,3.54,189.0,188.83,19.75534129]
[1735229302761,1.6771,189.03,188.87,19.75534129]
[1735229302963,4.3247,189.03,188.97,2.6483]
[1735229303657,5.2171,189.03,188.88,4.2988]
[1735229304057,2.6479,189.01,188.95,2.6485]
[1735229304362,5.2171,189.03,188.88,4.2988]
[1735229304561,5.2171,189.03,188.89,0.97340533]
[1735229305467,2.6477,189.02,188.97,2.6484]
[1735229305660,2.6477,189.02,188.88,4.9286]
[1735229305861,5.2171,189.03,188.89,0.97340156]
[1735229306058,5.2171,189.03,188.88,4.9286]
[1735229306260,2.6478,189.01,188.88,4.9286]
[1735229306657,2.6484,188.98,188.91,2.6491]
[1735229306863,3.54,188.98,188.86,3.54]
[1735229307359,1.6771,189.03,188.87,19.75534129]
[1735229307559,5.2171,189.03,188.87,19.75534129]
[1735229307865,2.6477,189.02,188.96,2.6484]
[1735229308365,5.2171,189.03,188.96,2.6484]
[1735229308669,5.2171,189.03,188.93,2.6488]
[1735229309061,5.2171,189.03,188.87,19.75534129]
[1735229309765,5.2171,189.03,188.84,7.27920202]
[1735229310161,2.6486,188.96,188.9,2.6493]
[1735229310361,6.1886,188.96,188.9,2.6493]
[1735229310665,2.6488,188.94,188.89,2.6495]
[1735229310860,2.6488,188.94,188.83,23.29534129]
[1735229311057,3.2011,188.95,188.83,23.29534129]
[1735229311261,5.8498,188.95,188.86,2.6498]
[1735229311460,3.2011,188.95,188.83,23.29534129]
[1735229311758,3.2011,188.95,188.87,2.6497]
[1735229311759,2.649,188.93,188.87,2.6497]
[1735229311964,4.7716,188.95,188.87,2.6497]
[1735229312468,4.7716,188.95,188.83,23.29534129]
[1735229312661,3.2011,188.95,188.83,23.29534129]
[1735229312861,1.6831,189.08,188.87,19.75534129]
[1735229315167,3.1684,189.03,188.93,3.54]
[1735229315567,3.1684,189.03,189.0,2.6479]
[1735229315768,3.1684,189.03,188.93,3.54]
[1735229315971,3.1684,189.03,188.99,2.6481]
[1735229317973,2.6477,189.02,188.97,2.6483]
[1735229318172,2.6477,189.02,188.93,3.54]
[1735229318568,2.6477,189.02,188.95,2.6486]
[1735229318880,3.1684,189.03,188.93,3.54]
[1735229318881,5.816,189.03,188.93,3.54]
[1735229319975,5.816,189.03,188.97,2.6483]
[1735229320173,2.6478,189.01,188.93,3.54]
[1735229320678,3.54,189.0,188.9,7.27920202]
[1735229321075,3.54,189.0,188.92,2.649]
[1735229321272,2.6482,188.99,188.89,7.27920202]
[1735229321775,2.6482,188.99,188.93,2.6489]
[1735229321968,2.6482,188.99,188.88,0.7606]
[1735229322167,3.54,189.0,188.88,0.7606]
[1735229322773,3.1684,189.03,188.99,2.648]
[1735229323179,3.1684,189.03,188.92,3.54]
[1735229324475,3.1684,189.03,188.9,29.11680809]
[1735229325178,3.1684,189.03,188.87,7.27920202]
[1735229325978,2.6488,188.95,188.9,2.6493]
[1735229326368,2.6488,188.95,188.91,2.6491]
[1735229327679,3.54,188.96,188.83,24.68874129]
[1735229327883,3.1684,189.03,188.87,19.75534129]
[1735229328070,3.1684,189.03,189.01,2.6477]
[1735229329079,3.1684,189.03,189.02,2.6477]
[1735229329273,3.1684,189.03,188.91,23.31534129]
[1735229329480,3.1684,189.03,189.0,2.6478]
[1735229330783,3.56,189.06,188.91,23.31534129]
[1735229330978,3.56,189.06,188.92,1.3909]
[1735229331183,3.56,189.06,189.03,2.6475]
[1735229331585,1.6831,189.08,189.03,2.6475]
[1735229331888,5.2431,189.08,189.03,2.6475]
[1735229332581,1.6831,189.08,189.05,2.6472]
[1735229332779,1.6831,189.08,188.96,3.56]
[1735229333180,4.33,189.08,189.02,2.6476]
[1735229333380,1.6831,189.08,188.96,3.56]
[1735229333883,3.3065,189.12,188.96,3.56]
[1735229334082,3.56,189.11,188.96,3.56]
[1735229334583,2.6466,189.1,189.04,2.6473]
[1735229335587,6.8665,189.12,188.96,3.56]
[1735229335987,3.3065,189.12,188.96,3.56]
[1735229336289,2.6466,189.1,189.0,2.6479]
[1735229336589,2.6466,189.1,188.96,3.56]
[1735229337289,3.3065,189.12,189.03,2.6474]
[1735229337984,2.6468,189.09,189.03,2.6474]
[1735229338189,2.6468,189.09,189.04,2.6474]
[1735229340776,2.6468,189.09,188.97,3.56]
[1735229340981,2.6469,189.08,188.97,3.56]
[1735229341184,3.3065,189.12,188.97,3.56]
[1735229341687,2.6467,189.1,189.06,2.6471]
[1735229341986,2.6467,189.1,188.97,3.56]
[1735229342187,3.3065,189.12,188.95,19.75534129]
[1735229342386,3.3065,189.12,188.95,23.31534129]
[1735229342785,2.6472,189.06,189.01,2.6478]
[1735229342985,2.6472,189.06,188.95,23.31534129]
[1735229342986,3.56,189.08,188.95,23.31534129]
[1735229343991,3.56,189.08,188.98,2.6481]
[1735229344192,3.56,189.08,188.92,1.3909]
[1735229344395,1.6552,189.07,188.92,1.3909]
[1735229344588,21.41054129,189.07,188.92,1.3909]
[1735229344991,1.6552,189.07,188.92,1.3909]
[1735229345192,3.56,189.08,189.05,2.6472]
[1735229345694,3.56,189.08,189.04,2.6474]
[1735229346092,2.647,189.07,189.02,2.6477]
[1735229346393,3.56,189.08,188.98,3.56]
[1735229346590,3.56,189.08,189.01,2.6478]
[1735229346785,3.56,189.08,188.98,3.56]
[1735229347191,6.2069,189.08,188.98,3.56]
[1735229347495,3.56,189.08,188.98,3.56]
[1735229347994,2.6471,189.07,188.97,3.56]
[1735229348390,2.6471,189.07,189.03,2.6475]
[1735229349392,3.56,189.08,188.97,3.56]
[1735229350993,3.56,189.08,189.04,2.6473]
[1735229351899,3.56,189.08,189.05,2.6472]
[1735229352192,2.6468,189.09,189.05,2.6472]
[1735229352791,3.56,189.11,188.97,3.56]
[1735229353093,1.542,189.1,189.03,2.6475]
[1735229353287,1.542,189.1,188.95,19.75534129]
[1735229353495,2.6474,189.04,188.94,3.56]
[1735229353694,3.56,189.05,188.94,3.56]
[1735229354098,3.56,189.05,188.97,2.6483]
[1735229354299,3.56,189.05,188.95,12.3272107]
[1735229354495,1.542,189.1,188.98,12.3272107]
[1735229355093,1.542,189.1,189.01,12.3272107]
[1735229355297,3.3065,189.12,189.08,2.6468]
[1735229357697,2.6465,189.11,189.06,2.6471]
[1735229358697,2.6465,189.11,189.01,3.56]
[1735229359006,2.6465,189.11,189.07,2.6469]
[1735229359200,3.3065,189.12,189.01,3.56]
[1735229359396,2.6468,189.09,189.04,2.6473]
[1735229359607,3.3065,189.12,188.98,19.71318719]
[1735229359798,1.6171,189.11,188.98,23.19318719]
[1735229360198,1.6171,189.11,189.03,2.6475]
[1735229360199,2.6469,189.08,189.03,2.6475]
[1735229360402,3.48,189.09,188.98,19.71318719]
[1735229361099,1.6171,189.11,188.98,19.71318719]
[1735229361411,1.6171,189.11,189.08,2.6468]
[1735229362909,1.6171,189.11,188.98,19.71318719]
[1735229363112,1.6171,189.11,189.07,2.647]
[1735229363707,1.6171,189.11,189.02,3.48]
[1735229363907,3.3065,189.12,189.08,2.6467]
[1735229364311,2.6459,189.16,189.11,2.6464]
[1735229364503,1.5878,189.17,189.02,23.19318719]
[1735229364709,5.0678,189.17,189.03,1.3863]
[1735229365010,7.7134,189.17,189.12,2.6461]
[1735229365205,1.5878,189.17,189.03,1.3863]
[1735229365507,3.48,189.2,189.07,3.48]
[1735229365716,3.1778,189.21,189.03,1.3863]
[1735229365904,3.1778,189.21,189.04,3.48]
[1735229366108,2.6458,189.16,189.1,2.6464]
[1735229369022,3.48,189.17,189.05,3.48]
[1735229369422,1.6463,189.16,189.0,29.11680809]
[1735229369923,19.71318719,189.15,189.0,3.48]
[1735229370315,19.71318719,189.15,188.99,29.11680809]
[1735229370621,19.71318719,189.11,188.96,7.27920202]
[1735229370822,6.6913,189.1,189.0,2.648]
[1735229371519,6.6913,189.1,189.01,2.6478]
[1735229371717,6.6913,189.1,188.96,7.27920202]
[1735229371914,19.71318719,189.07,188.96,7.27920202]
[1735229372116,1.5392,189.06,188.9,114.70623615]
[1735229372318,2.648,189.0,188.9,114.70623615]
[1735229372520,2.648,189.0,188.93,2.6489]
[1735229372521,3.48,189.0,188.93,2.6489]
[1735229372815,1.6521,188.99,188.93,2.6489]
[1735229373015,4.3002,188.99,188.94,2.6488]
[1735229373220,1.6521,188.99,188.9,107.42703413]
[1735229373418,3.323,188.99,188.9,107.42703413]
[1735229373621,3.323,188.99,188.93,2.6489]
[1735229374222,2.6483,188.98,188.93,2.6489]
[1735229374515,2.6483,188.98,188.9,107.42703413]
[1735229374516,2.6483,188.98,188.91,2.6491]
[1735229374716,2.6483,188.98,188.9,107.42703413]
[1735229375418,2.6483,188.98,188.92,2.649]
[1735229376220,1.5392,189.06,188.91,19.71318719]
[1735229376425,6.7465,189.05,188.91,23.19318719]
[1735229376632,6.7465,189.05,188.95,19.71318719]
[1735229377020,6.7465,189.05,188.92,0.6296]
[1735229377326,6.7465,189.05,188.91,4.2385]
[1735229377529,2.6475,189.04,188.98,2.6482]
[1735229378725,3.48,189.03,188.91,4.2385]
[1735229379029,3.48,189.03,188.91,3.48]
[1735229379323,2.648,189.0,188.91,3.48]
[1735229379521,2.648,189.0,188.95,2.6487]
[1735229379723,3.48,189.03,188.9,107.42703413]
[1735229380126,3.48,189.02,188.94,2.6488]
[1735229381418,2.6481,188.99,188.94,2.6488]
[1735229381621,2.6481,188.99,188.95,2.6486]
[1735229382627,2.648,189.0,188.95,2.6486]
[1735229382825,3.48,189.02,188.98,2.6481]
[1735229383225,3.48,189.02,188.9,107.42703413]
[1735229383729,3.48,189.02,188.98,2.6481]
[1735229384325,3.48,189.02,188.99,2.648]
[1735229384636,3.48,189.02,188.9,107.42703413]
[1735229385333,3.48,189.03,188.99,2.648]
[1735229385830,3.2665,189.05,188.92,3.48]
[1735229386028,3.2665,189.05,188.93,19.71318719]
[1735229386524,3.48,189.07,188.94,0.7589]
[1735229388535,3.48,189.07,189.02,2.6476]
[1735229391535,3.48,189.07,189.0,2.6478]
[1735229392137,3.48,189.07,189.01,2.6478]
[1735229392337,3.48,189.07,188.94,0.7589]
[1735229392638,3.44,189.09,188.94,0.7589]
[1735229393235,6.0868,189.09,189.04,2.6474]
[1735229393836,3.44,189.09,189.0,2.6479]
[1735229394438,3.44,189.09,189.01,2.6477]
[1735229394637,3.44,189.09,188.97,3.44]
[1735229395036,2.6474,189.05,189.0,2.6479]
[1735229395241,3.44,189.09,188.97,3.44]
[1735229395537,2.6473,189.06,189.01,2.6477]
[1735229395749,2.6473,189.06,188.97,3.44]
[1735229396239,3.44,189.09,189.01,2.6477]
[1735229396539,2.647,189.08,188.97,3.44]
[1735229397042,37.48094461,189.19,189.05,12.32666102]
[1735229397043,21.59094461,189.19,189.05,12.32666102]
[1735229397341,1.5378,189.18,189.14,2.6459]
[1735229397538,1.5378,189.18,189.11,12.32666102]
[1735229398238,1.5378,189.18,189.08,19.69071765]
[1735229398744,3.44,189.22,189.08,19.69071765]
[1735229398943,6.0848,189.23,189.08,19.69071765]
[1735229399147,6.0848,189.23,189.12,2.6462]
[1735229399439,3.44,189.23,189.11,3.44]
[1735229400034,4.9893,189.25,189.12,19.69071765]
[1735229400238,3.3132,189.25,189.12,19.69071765]
[1735229400452,3.3132,189.25,189.17,2.6455]
[1735229400645,3.3132,189.25,189.12,19.69071765]
[1735229402147,3.3132,189.25,189.19,2.6452]
[1735229402444,1.6229,189.25,189.19,2.6452]
[1735229402644,1.6706,189.3,189.16,23.13071765]
[1735229402842,5.1106,189.3,189.17,3.44]
[1735229404144,2.6441,189.28,189.2,2.645]
[1735229404344,2.6441,189.28,189.17,3.44]